Workbook

Sheet Fixed Aid
Y1: FIXED
AK2: 1 yard | AL2: 1 yard | AQ2: 1 yrd | AR2: 3yrds | AS2: 2DRMS
C3: D7NS 1010 IS THIS BEACON IN ITS AP? | AK3: =AK5/AK22 -> 8.214242599e-06 | AL3: =AL5/AL22 -> 9.267146057e-06 | AP3: Lon | AQ3: =AL3 -> 9.267146057e-06 | AR3: =AQ3*3 -> 2.780143817e-05 | AS3: =AQ3*AD19 -> 5.560287634e-05
C4: USE ONLY IF FIX OBTAINED WITH GPS ON THE PILING | AP4: Lat | AQ4: =AK3 -> 8.214242599e-06 | AR4: =AQ4*3 -> 2.46427278e-05 | AS4: =AQ4*AD19 -> 4.928545559e-05
C5: LLNR | D5: 24885 | F5: DATE: | H5: 2022-09-05 | AK5: 0.001 | AL5: 0.001
C6: FIX | AD6: Degrees | AE6: Radians | AK6: scaleLat | AL6: scaleLong | AR6: X | AS6: Y
C7: Latitude | D7: 27 | E7: ° | F7: 34 | G7: ' | H7: 40 | I7: '' | J7: N | Z7: ERROR CALCULATIONS | AC7: Lat1 | AD7: =D7+F7/60+H7/60/60 -> 27.57777778 | AE7: =AD7*PI()/180 -> 0.4813230226 | AK7: =AD11+AK5 -> 27.57877778 | AL7: =AD11 -> 27.57777778 | AQ7: Fix | AR7: =IF(AB35<>0,0,#N/A) -> 0 | AS7: =IF(AB35<>0,0,#N/A) -> 0
C8: Longitude | D8: 81 | E8: ° | F8: 30 | G8: ' | H8: 15 | I8: '' | J8: W | Z8: EPE | AA8: 2.4022 | AC8: Lon1 | AD8: =-(D8+F8/60+H8/60/60) -> -81.50416667 | AE8: =AD8*PI()/180 -> -1.422516062 | AK8: =AD12 -> -81.50416667 | AL8: =AD12+AL5 -> -81.50316667 | AQ8: AP | AR8: =IF(AB35<>0,-AD11+AD7,#N/A) -> 0 | AS8: =IF(AB35<>0,-AD12+AD8,#N/A) -> 0
D9: * Longitude will always assumed to be a negative value for US Coasts in D7 | Z9: CPE | AA9: 2.4022 | AK9: =AK7*PI()/180 -> 0.4813404759 | AL9: =AL7*PI()/180 -> 0.4813230226
C10: AP (Assigned Position) | Z10: DRMS | AA10: 2 | AK10: =AK8*PI()/180 -> -1.422516062 | AL10: =AL8*PI()/180 -> -1.422498609
C11: Latitude | D11: 27 | E11: ° | F11: 34 | G11: ' | H11: 40 | I11: '' | J11: N | Z11: 2DRMS | AA11: 1 | AC11: Lat1 | AD11: =D11+F11/60+H11/60/60 -> 27.57777778 | AE11: =AD11*PI()/180 -> 0.4813230226 | AK11: =AD11 -> 27.57777778 | AL11: =AD11 -> 27.57777778
C12: Longitude | D12: 81 | E12: ° | F12: 30 | G12: ' | H12: 15 | I12: '' | J12: W | Z12: R95 | AA12: 1.1555 | AC12: Lon1 | AD12: =-(D12+F12/60+H12/60/60) -> -81.50416667 | AE12: =AD12*PI()/180 -> -1.422516062 | AK12: =AD12 -> -81.50416667 | AL12: =AD12 -> -81.50416667
D13: * Longitude will always assumed to be a negative value for US Coasts in D7 | Z13: R99.7 | AA13: 0.8928 | AD13: =ABS(AD7-AD11) -> 0 | AK13: =AK11*PI()/180 -> 0.4813230226 | AL13: =AL11*PI()/180 -> 0.4813230226
C14: GPS Error | D14: Select Type | F14: Error Value | H14: Select Unit | Z14: feet | AA14: 29.5272 | AB14: 1 | AD14: =ABS(AD8-AD12) -> 0 | AK14: =AK12*PI()/180 -> -1.422516062 | AL14: =AL12*PI()/180 -> -1.422516062 | AR14: 3 yard Radius | AU14: 2DRMS
D15: 2DRMS | F15: 18 | H15: feet | Z15: yards | AA15: 9.8 | AB15: 3 | AK15: 3443.89849 | AL15: 3443.89849 | AP15: 0 | AQ15: =AP15*PI()/180 -> 0 | AR15: =$AR$7+$AR$4*SIN(AQ15) -> 0 | AS15: =$AS$7+$AR$3*COS(AQ15) -> 2.780143817e-05 | AU15: =$AR$7+$AS$4*SIN(AQ15) -> 0 | AV15: =$AS$7+$AS$3*COS(AQ15) -> 5.560287634e-05
Z16: meters | AA16: 9 | AB16: =AA15/AA16*3 -> 3.266666667 | AK16: =AK13-AK9 -> -1.745329252e-05 | AL16: =AL13-AL9 -> 0 | AP16: 1 | AQ16: 0.01745329252 | AR16: 4.300749012e-07 | AS16: 2.779720388e-05 | AU16: 8.601498025e-07 | AV16: 5.559440775e-05
AA17: 2DMRS | AC17: Maxiumum 2DRMS | AD17: =9*3.2808 -> 29.5272 | AE17: ft | AK17: =AK14-AK10 -> 0 | AL17: =AL14-AL10 -> -1.745329252e-05 | AP17: 2 | AQ17: 0.03490658504 | AR17: 8.600187975e-07 | AS17: 2.778450229e-05 | AU17: 1.720037595e-06 | AV17: 5.556900457e-05
C18: =IF('Fixed Aid'!$AB$35>0,"Distance from Fix to AP","") -> Distance from Fix to AP | D18: =IF('Fixed Aid'!$AB$35>0,TEXT('Fixed Aid'!AA23,"0.00"& " ft"),"") -> 0.00 ft | F18: =IF('Fixed Aid'!$AB$35>0,"= "&TEXT('Fixed Aid'!AA24,"0.00")&" yd","") -> = 0.00 yd | AA18: =VLOOKUP(D15,'Fixed Aid'!$Z$8:$AA$13,2,FALSE)*F15 -> 18 | AB18: =H15 -> feet | AK18: =(SIN($AK$16/2))^2+COS($AK$9)*COS($AK$13)*(SIN($AK$17/2))^2 -> 7.615435494e-11 | AL18: =(SIN($AL$16/2))^2+COS($AL$9)*COS($AL$13)*(SIN($AL$17/2))^2 -> 5.983258664e-11 | AP18: 3 | AQ18: 0.05235987756 | AR18: 1.289700724e-06 | AS18: 2.776333727e-05 | AU18: 2.579401447e-06 | AV18: 5.552667453e-05
AA19: =VLOOKUP(D15,'Fixed Aid'!$Z$8:$AA$13,2,FALSE)*F15*VLOOKUP(H15,'Fixed Aid'!$Z$14:$AB$16,3,FALSE) -> 18 | AB19: feet | AD19: =IF('Fixed Aid'!AA19<>0,'Fixed Aid'!AA19/3,"") -> 6 | AE19: yards | AK19: =2*ATAN2(SQRT(1-$AK$18),SQRT($AK$18)) -> 1.745329252e-05 | AL19: =2*ATAN2(SQRT(1-$AL$18),SQRT($AL$18)) -> 1.547030532e-05 | AP19: 4 | AQ19: 0.06981317008 | AR19: 1.718989795e-06 | AS19: 2.773371526e-05 | AU19: 3.437979589e-06 | AV19: 5.546743053e-05
C20: =IF('Fixed Aid'!$AB$35>0,"Bearing from Fix to AP","") -> Bearing from Fix to AP | D20: =IF('Fixed Aid'!$AB$35>0,'Fixed Aid'!AA26,"") -> N/A | E20: =IF(AND('Fixed Aid'!$AB$35>0,NOT(ISERROR(AD31))),"°T","") ->  | AP20: 5 | AQ20: 0.0872664626 | AR20: 2.147755244e-06 | AS20: 2.769564531e-05 | AU20: 4.295510489e-06 | AV20: 5.539129061e-05
Y21: Restriction to US Northern West Coast | AK21: =AK19*AK15 -> 0.06010736775 | AL21: =AL19*AL15 -> 0.05327816112 | AP21: 6 | AQ21: 0.1047197551 | AR21: 2.575866467e-06 | AS21: 2.764913898e-05 | AU21: 5.151732935e-06 | AV21: 5.529827797e-05
C22: =IF('Fixed Aid'!$AB$35>0,"2DRMS","") -> 2DRMS | D22: =IF('Fixed Aid'!$AB$35>0,TEXT('Fixed Aid'!AA19,"0.00"& " ft"),"") -> 18.00 ft | F22: =IF(AB35<>0,"= "&TEXT(AA19/3,"0.00")&" yd","") -> = 6.00 yd | AK22: =AK21*6076.11549/3 -> 121.7397694 | AL22: =AL21*6076.11549/3 -> 107.9080867 | AP22: 7 | AQ22: 0.1221730476 | AR22: 3.003193056e-06 | AS22: 2.759421047e-05 | AU22: 6.006386113e-06 | AV22: 5.518842093e-05
C23: =IF(IFERROR(AA19>AD17,0),"2DRMS EXCEEDS MAX 29.5ft - CANNOT USE THE FIX","") ->  | AA23: =IFERROR($AD$32*6076.11549,"") -> 0 | AC23: r | AD23: 3443.89849 | AE23: nm | AP23: 8 | AQ23: 0.1396263402 | AR23: 3.429604844e-06 | AS23: 2.753087649e-05 | AU23: 6.859209687e-06 | AV23: 5.506175297e-05
AA24: =AA23/3 -> 0 | AP24: 9 | AQ24: 0.1570796327 | AR24: 3.85497194e-06 | AS24: 2.745915633e-05 | AU24: 7.70994388e-06 | AV24: 5.491831267e-05
C25: =IF($AC$36=1,$AC$38,IF($AC$36=2,$AC$37,"")) -> Distance from Fix to AP less than 3 yards | J25: =IF($AB$34,'Fixed Aid'!AC36,"") -> 1 | AA25: AC19 | AP25: 10 | AQ25: 0.1745329252 | AR25: 4.279164775e-06 | AS25: 2.737907186e-05 | AU25: 8.558329549e-06 | AV25: 5.475814371e-05
AA26: =IFERROR(AD31*180/PI(),"N/A") -> N/A | AC26: dLat | AD26: =AE11-AE7 -> 0 | AP26: 11 | AQ26: 0.1919862177 | AR26: 4.702054134e-06 | AS26: 2.729064745e-05 | AU26: 9.404108268e-06 | AV26: 5.458129489e-05
C27: =IF($AC$44=2,$AC$45,IF($AC$44=1,$AC$46,"")) -> AP is inside the 2DRMS circle | J27: =IF($AB$34,'Fixed Aid'!AC44,"") -> 1 | AC27: dLon | AD27: =AE12-AE8 -> 0 | AP27: 12 | AQ27: 0.2094395102 | AR27: 5.123511203e-06 | AS27: 2.719391004e-05 | AU27: 1.024702241e-05 | AV27: 5.438782009e-05
AC28: a | AD28: =(SIN($AD$26/2))^2+COS($AE$7)*COS($AE$11)*(SIN($AD$27/2))^2 -> 0 | AP28: 13 | AQ28: 0.2268928028 | AR28: 5.5434076e-06 | AS28: 2.708888911e-05 | AU28: 1.10868152e-05 | AV28: 5.417777822e-05
C29: =IF(OR(AC48=2,AC48=3),AC49,IF(AC48=4,AC50,"")) -> AID IS IN AP | J29: =IF($AB$34,'Fixed Aid'!AC48,"") -> 2 | AC29: c | AD29: =2*ATAN2(SQRT(1-$AD$28),SQRT($AD$28)) -> 0 | AP29: 14 | AQ29: 0.2443460953 | AR29: 5.961615421e-06 | AS29: 2.697561664e-05 | AU29: 1.192323084e-05 | AV29: 5.395123328e-05
AP30: 15 | AQ30: 0.2617993878 | AR30: 6.378007277e-06 | AS30: 2.685412714e-05 | AU30: 1.275601455e-05 | AV30: 5.370825427e-05
C31: If AP is outside the 2DRMS circle and MPP to AP > 3 yards: Beacon is NOT IN AP | AC31: Bearing | AD31: =MOD(ATAN2((COS($AE$7)*SIN($AE$11))-(SIN($AE$7)*COS($AE$11)*COS($AE$12-$AE$8)), SIN($AE$12-$AE$8)*COS($AE$11)),2*PI()) ->  | AP31: 16 | AQ31: 0.2792526803 | AR31: 6.79245633e-06 | AS31: 2.672445761e-05 | AU31: 1.358491266e-05 | AV31: 5.344891521e-05
M32: Quick conversion tool: | AD32: =AD29*AD23 -> 0 | AE32: nm | AP32: 17 | AQ32: 0.2967059728 | AR32: 7.204836335e-06 | AS32: 2.658664755e-05 | AU32: 1.440967267e-05 | AV32: 5.317329509e-05
M33: Decimal | O33: 27.74412245 | Q33: 82.6263395 | AP33: 18 | AQ33: 0.3141592654 | AR33: 7.615021677e-06 | AS33: 2.644073893e-05 | AU33: 1.523004335e-05 | AV33: 5.288147787e-05
C34: District 7 recommends that you save this file as a pdf and include it with Form 7054. | M34: DM | O34: =TEXT(O35,"[hh]° mm") & TEXT((O35*24*60-TRUNC(O35*24*60)),".0000'") -> 27° 44.6473' | Q34: =TEXT(Q35,"[hh]° mm") & TEXT((Q35*24*60-TRUNC(Q35*24*60)),".0000'") -> 82° 37.5804' | AB34: =LEN(C23)=0 -> TRUE | AP34: 19 | AQ34: 0.3316125579 | AR34: 8.02288741e-06 | AS34: 2.628677622e-05 | AU34: 1.604577482e-05 | AV34: 5.257355244e-05
M35: DMS | O35: =ABS(O33)/24 -> 1.156005102 | Q35: =ABS(Q33/24) -> 3.442764146 | AB35: =IF(AND(AC35,AD35),1,0) -> 1 | AC35: =COUNTA(D7,D8,F7,F8,H7,H8,F11,F12,H11,H12,D11,D12,F15,D15,H15)=15 -> TRUE | AD35: =NOT(ISERROR(SUM(AD7:AD8,AD11:AD12))) -> TRUE | AP35: 20 | AQ35: 0.3490658504 | AR35: 8.428309293e-06 | AS35: 2.61248063e-05 | AU35: 1.685661859e-05 | AV35: 5.224961259e-05
AA36: AE31 | AC36: =IF(AND($AB$35,$AB$34),AF36,"") -> 1 | AF36: =IF($AA$24>=3,2,1) -> 1 | AP36: 21 | AQ36: 0.3665191429 | AR36: 8.831163832e-06 | AS36: 2.59548785e-05 | AU36: 1.766232766e-05 | AV36: 5.190975701e-05
C37: U.S.C.G. AUXILIARY SEVENTH DISTRICT NAVIGATION SYSTEMS | AA37: 32 | AB37: 2 | AC37: Distance from Fix to AP exceeds 3 yards | AP37: 22 | AQ37: 0.3839724354 | AR37: 9.231328312e-06 | AS37: 2.577704461e-05 | AU37: 1.846265662e-05 | AV37: 5.155408921e-05
C38: D7NS 1010 SEPTEMBER 12, 2022 | AA38: 33 | AB38: 1 | AC38: Distance from Fix to AP less than 3 yards | AP38: 23 | AQ38: 0.401425728 | AR38: 9.628680841e-06 | AS38: 2.559135877e-05 | AU38: 1.925736168e-05 | AV38: 5.118271754e-05
AP39: 24 | AQ39: 0.4188790205 | AR39: 1.002310038e-05 | AS39: 2.539787756e-05 | AU39: 2.004620076e-05 | AV39: 5.079575511e-05
AD40: 9 | AE40: METERS | AP40: 25 | AQ40: 0.436332313 | AR40: 1.041446679e-05 | AS40: 2.51966599e-05 | AU40: 2.082893357e-05 | AV40: 5.039331981e-05
AD41: =AD40*3.2808 -> 29.5272 | AP41: 26 | AQ41: 0.4537856055 | AR41: 1.080266084e-05 | AS41: 2.498776711e-05 | AU41: 2.160532169e-05 | AV41: 4.997553421e-05
AD42: =AD41/3 -> 9.8424 | AP42: 27 | AQ42: 0.471238898 | AR42: 1.118756431e-05 | AS42: 2.477126279e-05 | AU42: 2.237512861e-05 | AV42: 4.954252558e-05
AP43: 28 | AQ43: 0.4886921906 | AR43: 1.156905993e-05 | AS43: 2.454721291e-05 | AU43: 2.313811986e-05 | AV43: 4.909442582e-05
AA44: AE39 | AC44: =IF(AND($AB$35,$AB$34),AF44,"") -> 1 | AF44: =IF(AA24>AD19,2,1) -> 1 | AP44: 29 | AQ44: 0.5061454831 | AR44: 1.19470315e-05 | AS44: 2.431568571e-05 | AU44: 2.389406301e-05 | AV44: 4.863137142e-05
AA45: 40 | AB45: 2 | AC45: AP is outside the 2DRMS circle | AP45: 30 | AQ45: 0.5235987756 | AR45: 1.23213639e-05 | AS45: 2.407675172e-05 | AU45: 2.46427278e-05 | AV45: 4.815350344e-05
AA46: 41 | AB46: 1 | AC46: AP is inside the 2DRMS circle | AP46: 31 | AQ46: 0.5410520681 | AR46: 1.269194308e-05 | AS46: 2.383048371e-05 | AU46: 2.538388617e-05 | AV46: 4.766096742e-05
AP47: 32 | AQ47: 0.5585053606 | AR47: 1.305865618e-05 | AS47: 2.357695671e-05 | AU47: 2.611731237e-05 | AV47: 4.715391342e-05
AA48: AE43 | AC48: =IF(AND($AB$35,$AB$34),AC44+AC36,"") -> 2 | AP48: 33 | AQ48: 0.5759586532 | AR48: 1.342139149e-05 | AS48: 2.331624794e-05 | AU48: 2.684278297e-05 | AV48: 4.663249588e-05
AB49: 2-3 | AC49: AID IS IN AP | AP49: 34 | AQ49: 0.5934119457 | AR49: 1.378003851e-05 | AS49: 2.304843681e-05 | AU49: 2.756007701e-05 | AV49: 4.609687363e-05
AB50: 4 | AC50: AID IS NOT IN AP | AP50: 35 | AQ50: 0.6108652382 | AR50: 1.413448799e-05 | AS50: 2.277360491e-05 | AU50: 2.826897598e-05 | AV50: 4.554720982e-05
AP51: 36 | AQ51: 0.6283185307 | AR51: 1.448463198e-05 | AS51: 2.249183595e-05 | AU51: 2.896926395e-05 | AV51: 4.49836719e-05
AP52: 37 | AQ52: 0.6457718232 | AR52: 1.48303638e-05 | AS52: 2.220321575e-05 | AU52: 2.96607276e-05 | AV52: 4.440643151e-05
AP53: 38 | AQ53: 0.6632251158 | AR53: 1.517157815e-05 | AS53: 2.190783224e-05 | AU53: 3.03431563e-05 | AV53: 4.381566449e-05
AP54: 39 | AQ54: 0.6806784083 | AR54: 1.550817109e-05 | AS54: 2.16057754e-05 | AU54: 3.101634219e-05 | AV54: 4.321155079e-05
AP55: 40 | AQ55: 0.6981317008 | AR55: 1.58400401e-05 | AS55: 2.129713722e-05 | AU55: 3.168008019e-05 | AV55: 4.259427444e-05
AP56: 41 | AQ56: 0.7155849933 | AR56: 1.616708407e-05 | AS56: 2.098201173e-05 | AU56: 3.233416814e-05 | AV56: 4.196402346e-05
AP57: 42 | AQ57: 0.7330382858 | AR57: 1.648920339e-05 | AS57: 2.066049492e-05 | AU57: 3.297840679e-05 | AV57: 4.132098983e-05
AP58: 43 | AQ58: 0.7504915784 | AR58: 1.680629994e-05 | AS58: 2.033268472e-05 | AU58: 3.361259989e-05 | AV58: 4.066536943e-05
AP59: 44 | AQ59: 0.7679448709 | AR59: 1.711827713e-05 | AS59: 1.999868098e-05 | AU59: 3.423655427e-05 | AV59: 3.999736197e-05
AP60: 45 | AQ60: 0.7853981634 | AR60: 1.742503993e-05 | AS60: 1.965858546e-05 | AU60: 3.485007986e-05 | AV60: 3.931717091e-05
AP61: 46 | AQ61: 0.8028514559 | AR61: 1.772649489e-05 | AS61: 1.931250174e-05 | AU61: 3.545298979e-05 | AV61: 3.862500347e-05
AP62: 47 | AQ62: 0.8203047484 | AR62: 1.802255019e-05 | AS62: 1.896053524e-05 | AU62: 3.604510038e-05 | AV62: 3.792107048e-05
AP63: 48 | AQ63: 0.837758041 | AR63: 1.831311565e-05 | AS63: 1.860279318e-05 | AU63: 3.66262313e-05 | AV63: 3.720558636e-05
AP64: 49 | AQ64: 0.8552113335 | AR64: 1.859810275e-05 | AS64: 1.823938453e-05 | AU64: 3.71962055e-05 | AV64: 3.647876906e-05
AP65: 50 | AQ65: 0.872664626 | AR65: 1.887742469e-05 | AS65: 1.787041999e-05 | AU65: 3.775484938e-05 | AV65: 3.574083998e-05
AP66: 51 | AQ66: 0.8901179185 | AR66: 1.915099639e-05 | AS66: 1.749601194e-05 | AU66: 3.830199277e-05 | AV66: 3.499202388e-05
AP67: 52 | AQ67: 0.907571211 | AR67: 1.94187345e-05 | AS67: 1.711627444e-05 | AU67: 3.8837469e-05 | AV67: 3.423254888e-05
AP68: 53 | AQ68: 0.9250245036 | AR68: 1.968055748e-05 | AS68: 1.673132316e-05 | AU68: 3.936111497e-05 | AV68: 3.346264631e-05
AP69: 54 | AQ69: 0.9424777961 | AR69: 1.993638558e-05 | AS69: 1.634127535e-05 | AU69: 3.987277115e-05 | AV69: 3.26825507e-05
AP70: 55 | AQ70: 0.9599310886 | AR70: 2.018614085e-05 | AS70: 1.594624983e-05 | AU70: 4.03722817e-05 | AV70: 3.189249966e-05
AP71: 56 | AQ71: 0.9773843811 | AR71: 2.042974723e-05 | AS71: 1.554636693e-05 | AU71: 4.085949447e-05 | AV71: 3.109273386e-05
AP72: 57 | AQ72: 0.9948376736 | AR72: 2.066713052e-05 | AS72: 1.514174846e-05 | AU72: 4.133426103e-05 | AV72: 3.028349691e-05
AP73: 58 | AQ73: 1.012290966 | AR73: 2.089821839e-05 | AS73: 1.473251766e-05 | AU73: 4.179643678e-05 | AV73: 2.946503532e-05
AP74: 59 | AQ74: 1.029744259 | AR74: 2.112294047e-05 | AS74: 1.43187992e-05 | AU74: 4.224588093e-05 | AV74: 2.863759839e-05
AP75: 60 | AQ75: 1.047197551 | AR75: 2.134122829e-05 | AS75: 1.390071909e-05 | AU75: 4.268245658e-05 | AV75: 2.780143817e-05
AP76: 61 | AQ76: 1.064650844 | AR76: 2.155301537e-05 | AS76: 1.347840468e-05 | AU76: 4.310603074e-05 | AV76: 2.695680936e-05
AP77: 62 | AQ77: 1.082104136 | AR77: 2.175823719e-05 | AS77: 1.305198463e-05 | AU77: 4.351647438e-05 | AV77: 2.610396925e-05
AP78: 63 | AQ78: 1.099557429 | AR78: 2.195683124e-05 | AS78: 1.262158881e-05 | AU78: 4.391366248e-05 | AV78: 2.524317762e-05
AP79: 64 | AQ79: =AP79*PI()/180 -> 1.117010721 | AR79: =$AR$7+$AR$4*SIN(AQ79) -> 2.214873703e-05 | AS79: =$AS$7+$AR$3*COS(AQ79) -> 1.218734833e-05 | AU79: =$AR$7+$AS$4*SIN(AQ79) -> 4.429747406e-05 | AV79: =$AS$7+$AS$3*COS(AQ79) -> 2.437469667e-05
AP80: 65 | AQ80: 1.134464014 | AR80: 2.23338961e-05 | AS80: 1.174939547e-05 | AU80: 4.466779219e-05 | AV80: 2.349879095e-05
AP81: 66 | AQ81: 1.151917306 | AR81: 2.251225204e-05 | AS81: 1.130786363e-05 | AU81: 4.502450409e-05 | AV81: 2.261572727e-05
AP82: 67 | AQ82: 1.169370599 | AR82: 2.268375054e-05 | AS82: 1.086288731e-05 | AU82: 4.536750108e-05 | AV82: 2.172577462e-05
AP83: 68 | AQ83: 1.186823891 | AR83: 2.284833935e-05 | AS83: 1.041460205e-05 | AU83: 4.569667869e-05 | AV83: 2.082920409e-05
AP84: 69 | AQ84: 1.204277184 | AR84: 2.300596833e-05 | AS84: 9.963144392e-06 | AU84: 4.601193665e-05 | AV84: 1.992628878e-05
AP85: 70 | AQ85: 1.221730476 | AR85: 2.315658947e-05 | AS85: 9.508651868e-06 | AU85: 4.631317893e-05 | AV85: 1.901730374e-05
AP86: 71 | AQ86: 1.239183769 | AR86: 2.330015689e-05 | AS86: 9.051262917e-06 | AU86: 4.660031377e-05 | AV86: 1.810252583e-05
AP87: 72 | AQ87: 1.256637061 | AR87: 2.343662685e-05 | AS87: 8.591116863e-06 | AU87: 4.68732537e-05 | AV87: 1.718223373e-05
AP88: 73 | AQ88: 1.274090354 | AR88: 2.356595779e-05 | AS88: 8.128353872e-06 | AU88: 4.713191558e-05 | AV88: 1.625670774e-05
AP89: 74 | AQ89: 1.291543646 | AR89: 2.368811031e-05 | AS89: 7.663114905e-06 | AU89: 4.737622063e-05 | AV89: 1.532622981e-05
AP90: 75 | AQ90: 1.308996939 | AR90: 2.380304721e-05 | AS90: 7.19554168e-06 | AU90: 4.760609442e-05 | AV90: 1.439108336e-05
AP91: 76 | AQ91: 1.326450232 | AR91: 2.391073346e-05 | AS91: 6.725776623e-06 | AU91: 4.782146693e-05 | AV91: 1.345155325e-05
AP92: 77 | AQ92: 1.343903524 | AR92: 2.401113628e-05 | AS92: 6.253962829e-06 | AU92: 4.802227256e-05 | AV92: 1.250792566e-05
AP93: 78 | AQ93: 1.361356817 | AR93: 2.410422507e-05 | AS93: 5.780244017e-06 | AU93: 4.820845014e-05 | AV93: 1.156048803e-05
AP94: 79 | AQ94: 1.378810109 | AR94: 2.418997148e-05 | AS94: 5.304764487e-06 | AU94: 4.837994296e-05 | AV94: 1.060952897e-05
AP95: 80 | AQ95: 1.396263402 | AR95: 2.426834939e-05 | AS95: 4.827669075e-06 | AU95: 4.853669878e-05 | AV95: 9.65533815e-06
AP96: 81 | AQ96: 1.413716694 | AR96: 2.433933493e-05 | AS96: 4.349103108e-06 | AU96: 4.867866985e-05 | AV96: 8.698206215e-06
AP97: 82 | AQ97: 1.431169987 | AR97: 2.440290646e-05 | AS97: 3.869212361e-06 | AU97: 4.880581293e-05 | AV97: 7.738424723e-06
AP98: 83 | AQ98: 1.448623279 | AR98: 2.445904464e-05 | AS98: 3.388143016e-06 | AU98: 4.891808928e-05 | AV98: 6.776286031e-06
AP99: 84 | AQ99: 1.466076572 | AR99: 2.450773236e-05 | AS99: 2.906041609e-06 | AU99: 4.901546471e-05 | AV99: 5.812083217e-06
AP100: 85 | AQ100: 1.483529864 | AR100: 2.454895478e-05 | AS100: 2.423054993e-06 | AU100: 4.909790956e-05 | AV100: 4.846109986e-06
AP101: 86 | AQ101: 1.500983157 | AR101: 2.458269935e-05 | AS101: 1.939330292e-06 | AU101: 4.91653987e-05 | AV101: 3.878660584e-06
AP102: 87 | AQ102: 1.518436449 | AR102: 2.460895579e-05 | AS102: 1.455014852e-06 | AU102: 4.921791159e-05 | AV102: 2.910029703e-06
AP103: 88 | AQ103: 1.535889742 | AR103: 2.462771611e-05 | AS103: 9.702561998e-07 | AU103: 4.925543223e-05 | AV103: 1.9405124e-06
AP104: 89 | AQ104: 1.553343034 | AR104: 2.463897459e-05 | AS104: 4.852019985e-07 | AU104: 4.927794918e-05 | AV104: 9.70403997e-07
AP105: 90 | AQ105: 1.570796327 | AR105: 2.46427278e-05 | AS105: 1.703044451e-21 | AU105: 4.928545559e-05 | AV105: 3.406088902e-21
AP106: 91 | AQ106: 1.588249619 | AR106: 2.463897459e-05 | AS106: -4.852019985e-07 | AU106: 4.927794918e-05 | AV106: -9.70403997e-07
AP107: 92 | AQ107: 1.605702912 | AR107: 2.462771611e-05 | AS107: -9.702561998e-07 | AU107: 4.925543223e-05 | AV107: -1.9405124e-06
AP108: 93 | AQ108: 1.623156204 | AR108: 2.460895579e-05 | AS108: -1.455014852e-06 | AU108: 4.921791159e-05 | AV108: -2.910029703e-06
AP109: 94 | AQ109: 1.640609497 | AR109: 2.458269935e-05 | AS109: -1.939330292e-06 | AU109: 4.91653987e-05 | AV109: -3.878660584e-06
AP110: 95 | AQ110: 1.658062789 | AR110: 2.454895478e-05 | AS110: -2.423054993e-06 | AU110: 4.909790956e-05 | AV110: -4.846109986e-06
AP111: 96 | AQ111: 1.675516082 | AR111: 2.450773236e-05 | AS111: -2.906041609e-06 | AU111: 4.901546471e-05 | AV111: -5.812083217e-06
AP112: 97 | AQ112: 1.692969374 | AR112: 2.445904464e-05 | AS112: -3.388143016e-06 | AU112: 4.891808928e-05 | AV112: -6.776286031e-06
AP113: 98 | AQ113: 1.710422667 | AR113: 2.440290646e-05 | AS113: -3.869212361e-06 | AU113: 4.880581293e-05 | AV113: -7.738424723e-06
AP114: 99 | AQ114: 1.727875959 | AR114: 2.433933493e-05 | AS114: -4.349103108e-06 | AU114: 4.867866985e-05 | AV114: -8.698206215e-06
AP115: 100 | AQ115: 1.745329252 | AR115: 2.426834939e-05 | AS115: -4.827669075e-06 | AU115: 4.853669878e-05 | AV115: -9.65533815e-06
AP116: 101 | AQ116: 1.762782545 | AR116: 2.418997148e-05 | AS116: -5.304764487e-06 | AU116: 4.837994296e-05 | AV116: -1.060952897e-05
AP117: 102 | AQ117: 1.780235837 | AR117: 2.410422507e-05 | AS117: -5.780244017e-06 | AU117: 4.820845014e-05 | AV117: -1.156048803e-05
AP118: 103 | AQ118: 1.79768913 | AR118: 2.401113628e-05 | AS118: -6.253962829e-06 | AU118: 4.802227256e-05 | AV118: -1.250792566e-05
AP119: 104 | AQ119: 1.815142422 | AR119: 2.391073346e-05 | AS119: -6.725776623e-06 | AU119: 4.782146693e-05 | AV119: -1.345155325e-05
AP120: 105 | AQ120: 1.832595715 | AR120: 2.380304721e-05 | AS120: -7.19554168e-06 | AU120: 4.760609442e-05 | AV120: -1.439108336e-05
AP121: 106 | AQ121: 1.850049007 | AR121: 2.368811031e-05 | AS121: -7.663114905e-06 | AU121: 4.737622063e-05 | AV121: -1.532622981e-05
AP122: 107 | AQ122: 1.8675023 | AR122: 2.356595779e-05 | AS122: -8.128353872e-06 | AU122: 4.713191558e-05 | AV122: -1.625670774e-05
AP123: 108 | AQ123: 1.884955592 | AR123: 2.343662685e-05 | AS123: -8.591116863e-06 | AU123: 4.68732537e-05 | AV123: -1.718223373e-05
AP124: 109 | AQ124: 1.902408885 | AR124: 2.330015689e-05 | AS124: -9.051262917e-06 | AU124: 4.660031377e-05 | AV124: -1.810252583e-05
AP125: 110 | AQ125: 1.919862177 | AR125: 2.315658947e-05 | AS125: -9.508651868e-06 | AU125: 4.631317893e-05 | AV125: -1.901730374e-05
AP126: 111 | AQ126: 1.93731547 | AR126: 2.300596833e-05 | AS126: -9.963144392e-06 | AU126: 4.601193665e-05 | AV126: -1.992628878e-05
AP127: 112 | AQ127: 1.954768762 | AR127: 2.284833935e-05 | AS127: -1.041460205e-05 | AU127: 4.569667869e-05 | AV127: -2.082920409e-05
AP128: 113 | AQ128: 1.972222055 | AR128: 2.268375054e-05 | AS128: -1.086288731e-05 | AU128: 4.536750108e-05 | AV128: -2.172577462e-05
AP129: 114 | AQ129: 1.989675347 | AR129: 2.251225204e-05 | AS129: -1.130786363e-05 | AU129: 4.502450409e-05 | AV129: -2.261572727e-05
AP130: 115 | AQ130: 2.00712864 | AR130: 2.23338961e-05 | AS130: -1.174939547e-05 | AU130: 4.466779219e-05 | AV130: -2.349879095e-05
AP131: 116 | AQ131: 2.024581932 | AR131: 2.214873703e-05 | AS131: -1.218734833e-05 | AU131: 4.429747406e-05 | AV131: -2.437469667e-05
AP132: 117 | AQ132: 2.042035225 | AR132: 2.195683124e-05 | AS132: -1.262158881e-05 | AU132: 4.391366248e-05 | AV132: -2.524317762e-05
AP133: 118 | AQ133: 2.059488517 | AR133: 2.175823719e-05 | AS133: -1.305198463e-05 | AU133: 4.351647438e-05 | AV133: -2.610396925e-05
AP134: 119 | AQ134: 2.07694181 | AR134: 2.155301537e-05 | AS134: -1.347840468e-05 | AU134: 4.310603074e-05 | AV134: -2.695680936e-05
AP135: 120 | AQ135: 2.094395102 | AR135: 2.134122829e-05 | AS135: -1.390071909e-05 | AU135: 4.268245658e-05 | AV135: -2.780143817e-05
AP136: 121 | AQ136: 2.111848395 | AR136: 2.112294047e-05 | AS136: -1.43187992e-05 | AU136: 4.224588093e-05 | AV136: -2.863759839e-05
AP137: 122 | AQ137: 2.129301687 | AR137: 2.089821839e-05 | AS137: -1.473251766e-05 | AU137: 4.179643678e-05 | AV137: -2.946503532e-05
AP138: 123 | AQ138: 2.14675498 | AR138: 2.066713052e-05 | AS138: -1.514174846e-05 | AU138: 4.133426103e-05 | AV138: -3.028349691e-05
AP139: 124 | AQ139: 2.164208272 | AR139: 2.042974723e-05 | AS139: -1.554636693e-05 | AU139: 4.085949447e-05 | AV139: -3.109273386e-05
AP140: 125 | AQ140: 2.181661565 | AR140: 2.018614085e-05 | AS140: -1.594624983e-05 | AU140: 4.03722817e-05 | AV140: -3.189249966e-05
AP141: 126 | AQ141: 2.199114858 | AR141: 1.993638558e-05 | AS141: -1.634127535e-05 | AU141: 3.987277115e-05 | AV141: -3.26825507e-05
AP142: 127 | AQ142: 2.21656815 | AR142: 1.968055748e-05 | AS142: -1.673132316e-05 | AU142: 3.936111497e-05 | AV142: -3.346264631e-05
AP143: 128 | AQ143: =AP143*PI()/180 -> 2.234021443 | AR143: =$AR$7+$AR$4*SIN(AQ143) -> 1.94187345e-05 | AS143: =$AS$7+$AR$3*COS(AQ143) -> -1.711627444e-05 | AU143: =$AR$7+$AS$4*SIN(AQ143) -> 3.8837469e-05 | AV143: =$AS$7+$AS$3*COS(AQ143) -> -3.423254888e-05
AP144: 129 | AQ144: 2.251474735 | AR144: 1.915099639e-05 | AS144: -1.749601194e-05 | AU144: 3.830199277e-05 | AV144: -3.499202388e-05
AP145: 130 | AQ145: 2.268928028 | AR145: 1.887742469e-05 | AS145: -1.787041999e-05 | AU145: 3.775484938e-05 | AV145: -3.574083998e-05
AP146: 131 | AQ146: 2.28638132 | AR146: 1.859810275e-05 | AS146: -1.823938453e-05 | AU146: 3.71962055e-05 | AV146: -3.647876906e-05
AP147: 132 | AQ147: 2.303834613 | AR147: 1.831311565e-05 | AS147: -1.860279318e-05 | AU147: 3.66262313e-05 | AV147: -3.720558636e-05
AP148: 133 | AQ148: 2.321287905 | AR148: 1.802255019e-05 | AS148: -1.896053524e-05 | AU148: 3.604510038e-05 | AV148: -3.792107048e-05
AP149: 134 | AQ149: 2.338741198 | AR149: 1.772649489e-05 | AS149: -1.931250174e-05 | AU149: 3.545298979e-05 | AV149: -3.862500347e-05
AP150: 135 | AQ150: 2.35619449 | AR150: 1.742503993e-05 | AS150: -1.965858546e-05 | AU150: 3.485007986e-05 | AV150: -3.931717091e-05
AP151: 136 | AQ151: 2.373647783 | AR151: 1.711827713e-05 | AS151: -1.999868098e-05 | AU151: 3.423655427e-05 | AV151: -3.999736197e-05
AP152: 137 | AQ152: 2.391101075 | AR152: 1.680629994e-05 | AS152: -2.033268472e-05 | AU152: 3.361259989e-05 | AV152: -4.066536943e-05
AP153: 138 | AQ153: 2.408554368 | AR153: 1.648920339e-05 | AS153: -2.066049492e-05 | AU153: 3.297840679e-05 | AV153: -4.132098983e-05
AP154: 139 | AQ154: 2.42600766 | AR154: 1.616708407e-05 | AS154: -2.098201173e-05 | AU154: 3.233416814e-05 | AV154: -4.196402346e-05
AP155: 140 | AQ155: 2.443460953 | AR155: 1.58400401e-05 | AS155: -2.129713722e-05 | AU155: 3.168008019e-05 | AV155: -4.259427444e-05
AP156: 141 | AQ156: 2.460914245 | AR156: 1.550817109e-05 | AS156: -2.16057754e-05 | AU156: 3.101634219e-05 | AV156: -4.321155079e-05
AP157: 142 | AQ157: 2.478367538 | AR157: 1.517157815e-05 | AS157: -2.190783224e-05 | AU157: 3.03431563e-05 | AV157: -4.381566449e-05
AP158: 143 | AQ158: 2.49582083 | AR158: 1.48303638e-05 | AS158: -2.220321575e-05 | AU158: 2.96607276e-05 | AV158: -4.440643151e-05
AP159: 144 | AQ159: 2.513274123 | AR159: 1.448463198e-05 | AS159: -2.249183595e-05 | AU159: 2.896926395e-05 | AV159: -4.49836719e-05
AP160: 145 | AQ160: 2.530727415 | AR160: 1.413448799e-05 | AS160: -2.277360491e-05 | AU160: 2.826897598e-05 | AV160: -4.554720982e-05
AP161: 146 | AQ161: 2.548180708 | AR161: 1.378003851e-05 | AS161: -2.304843681e-05 | AU161: 2.756007701e-05 | AV161: -4.609687363e-05
AP162: 147 | AQ162: 2.565634 | AR162: 1.342139149e-05 | AS162: -2.331624794e-05 | AU162: 2.684278297e-05 | AV162: -4.663249588e-05
AP163: 148 | AQ163: 2.583087293 | AR163: 1.305865618e-05 | AS163: -2.357695671e-05 | AU163: 2.611731237e-05 | AV163: -4.715391342e-05
AP164: 149 | AQ164: 2.600540585 | AR164: 1.269194308e-05 | AS164: -2.383048371e-05 | AU164: 2.538388617e-05 | AV164: -4.766096742e-05
AP165: 150 | AQ165: 2.617993878 | AR165: 1.23213639e-05 | AS165: -2.407675172e-05 | AU165: 2.46427278e-05 | AV165: -4.815350344e-05
AP166: 151 | AQ166: 2.635447171 | AR166: 1.19470315e-05 | AS166: -2.431568571e-05 | AU166: 2.389406301e-05 | AV166: -4.863137142e-05
AP167: 152 | AQ167: 2.652900463 | AR167: 1.156905993e-05 | AS167: -2.454721291e-05 | AU167: 2.313811986e-05 | AV167: -4.909442582e-05
AP168: 153 | AQ168: 2.670353756 | AR168: 1.118756431e-05 | AS168: -2.477126279e-05 | AU168: 2.237512861e-05 | AV168: -4.954252558e-05
AP169: 154 | AQ169: 2.687807048 | AR169: 1.080266084e-05 | AS169: -2.498776711e-05 | AU169: 2.160532169e-05 | AV169: -4.997553421e-05
AP170: 155 | AQ170: 2.705260341 | AR170: 1.041446679e-05 | AS170: -2.51966599e-05 | AU170: 2.082893357e-05 | AV170: -5.039331981e-05
AP171: 156 | AQ171: 2.722713633 | AR171: 1.002310038e-05 | AS171: -2.539787756e-05 | AU171: 2.004620076e-05 | AV171: -5.079575511e-05
AP172: 157 | AQ172: 2.740166926 | AR172: 9.628680841e-06 | AS172: -2.559135877e-05 | AU172: 1.925736168e-05 | AV172: -5.118271754e-05
AP173: 158 | AQ173: 2.757620218 | AR173: 9.231328312e-06 | AS173: -2.577704461e-05 | AU173: 1.846265662e-05 | AV173: -5.155408921e-05
AP174: 159 | AQ174: 2.775073511 | AR174: 8.831163832e-06 | AS174: -2.59548785e-05 | AU174: 1.766232766e-05 | AV174: -5.190975701e-05
AP175: 160 | AQ175: 2.792526803 | AR175: 8.428309293e-06 | AS175: -2.61248063e-05 | AU175: 1.685661859e-05 | AV175: -5.224961259e-05
AP176: 161 | AQ176: 2.809980096 | AR176: 8.02288741e-06 | AS176: -2.628677622e-05 | AU176: 1.604577482e-05 | AV176: -5.257355244e-05
AP177: 162 | AQ177: 2.827433388 | AR177: 7.615021677e-06 | AS177: -2.644073893e-05 | AU177: 1.523004335e-05 | AV177: -5.288147787e-05
AP178: 163 | AQ178: 2.844886681 | AR178: 7.204836335e-06 | AS178: -2.658664755e-05 | AU178: 1.440967267e-05 | AV178: -5.317329509e-05
AP179: 164 | AQ179: 2.862339973 | AR179: 6.79245633e-06 | AS179: -2.672445761e-05 | AU179: 1.358491266e-05 | AV179: -5.344891521e-05
AP180: 165 | AQ180: 2.879793266 | AR180: 6.378007277e-06 | AS180: -2.685412714e-05 | AU180: 1.275601455e-05 | AV180: -5.370825427e-05
AP181: 166 | AQ181: 2.897246558 | AR181: 5.961615421e-06 | AS181: -2.697561664e-05 | AU181: 1.192323084e-05 | AV181: -5.395123328e-05
AP182: 167 | AQ182: 2.914699851 | AR182: 5.5434076e-06 | AS182: -2.708888911e-05 | AU182: 1.10868152e-05 | AV182: -5.417777822e-05
AP183: 168 | AQ183: 2.932153143 | AR183: 5.123511203e-06 | AS183: -2.719391004e-05 | AU183: 1.024702241e-05 | AV183: -5.438782009e-05
AP184: 169 | AQ184: 2.949606436 | AR184: 4.702054134e-06 | AS184: -2.729064745e-05 | AU184: 9.404108268e-06 | AV184: -5.458129489e-05
AP185: 170 | AQ185: 2.967059728 | AR185: 4.279164775e-06 | AS185: -2.737907186e-05 | AU185: 8.558329549e-06 | AV185: -5.475814371e-05
AP186: 171 | AQ186: 2.984513021 | AR186: 3.85497194e-06 | AS186: -2.745915633e-05 | AU186: 7.70994388e-06 | AV186: -5.491831267e-05
AP187: 172 | AQ187: 3.001966313 | AR187: 3.429604844e-06 | AS187: -2.753087649e-05 | AU187: 6.859209687e-06 | AV187: -5.506175297e-05
AP188: 173 | AQ188: 3.019419606 | AR188: 3.003193056e-06 | AS188: -2.759421047e-05 | AU188: 6.006386113e-06 | AV188: -5.518842093e-05
AP189: 174 | AQ189: 3.036872898 | AR189: 2.575866467e-06 | AS189: -2.764913898e-05 | AU189: 5.151732935e-06 | AV189: -5.529827797e-05
AP190: 175 | AQ190: 3.054326191 | AR190: 2.147755244e-06 | AS190: -2.769564531e-05 | AU190: 4.295510489e-06 | AV190: -5.539129061e-05
AP191: 176 | AQ191: 3.071779484 | AR191: 1.718989795e-06 | AS191: -2.773371526e-05 | AU191: 3.437979589e-06 | AV191: -5.546743053e-05
AP192: 177 | AQ192: 3.089232776 | AR192: 1.289700724e-06 | AS192: -2.776333727e-05 | AU192: 2.579401447e-06 | AV192: -5.552667453e-05
AP193: 178 | AQ193: 3.106686069 | AR193: 8.600187975e-07 | AS193: -2.778450229e-05 | AU193: 1.720037595e-06 | AV193: -5.556900457e-05
AP194: 179 | AQ194: 3.124139361 | AR194: 4.300749012e-07 | AS194: -2.779720388e-05 | AU194: 8.601498025e-07 | AV194: -5.559440775e-05
AP195: 180 | AQ195: 3.141592654 | AR195: 3.019099988e-21 | AS195: -2.780143817e-05 | AU195: 6.038199977e-21 | AV195: -5.560287634e-05
AP196: 181 | AQ196: 3.159045946 | AR196: -4.300749012e-07 | AS196: -2.779720388e-05 | AU196: -8.601498025e-07 | AV196: -5.559440775e-05
AP197: 182 | AQ197: 3.176499239 | AR197: -8.600187975e-07 | AS197: -2.778450229e-05 | AU197: -1.720037595e-06 | AV197: -5.556900457e-05
AP198: 183 | AQ198: 3.193952531 | AR198: -1.289700724e-06 | AS198: -2.776333727e-05 | AU198: -2.579401447e-06 | AV198: -5.552667453e-05
AP199: 184 | AQ199: 3.211405824 | AR199: -1.718989795e-06 | AS199: -2.773371526e-05 | AU199: -3.437979589e-06 | AV199: -5.546743053e-05
AP200: 185 | AQ200: 3.228859116 | AR200: -2.147755244e-06 | AS200: -2.769564531e-05 | AU200: -4.295510489e-06 | AV200: -5.539129061e-05
... 174 more rows

Sheet Buoy
Z1: BUOY
AL2: 1 yard | AM2: 1 yard | AR2: 1 yrd | AS2: PT circle | AT2: 2DRMS
C3: D7NS 1010 IS THIS BUOY ON STATION? | AL3: =AL5/AL22 -> 8.214242599e-06 | AM3: =AM5/AM22 -> 9.219059991e-06 | AQ3: Lon | AR3: =AM3 -> 9.219059991e-06 | AS3: =AM3*Buoy!D18 -> 0.0002304764998 | AT3: =AR3*AD19 -> 6.146039994e-05
C4: USE THIS CALCULATOR ONLY IF YOU LOCATED THE BUOY SINKER | AQ4: Lat | AR4: =AL3 -> 8.214242599e-06 | AS4: =AL3*Buoy!D18 -> 0.000205356065 | AT4: =AL3*AD19 -> 5.476161733e-05
C5: LLNR | D5: 24885 | F5: DATE: | H5: 2021-11-13 | AD5: Degrees | AE5: Radians | AL5: 0.001 | AM5: 0.001
C6: FIX | D6: Deg | F6: Min | H6: Sec | AL6: scaleLat | AM6: scaleLong | AS6: X | AT6: Y
C7: Latitude | D7: 27 | E7: ° | F7: 0 | G7: ' | H7: 0 | I7: '' | J7: N | AC7: Lat1 | AD7: =Buoy!D7+Buoy!F7/60+Buoy!H7/60/60 -> 27 | AE7: =AD7*PI()/180 -> 0.471238898 | AL7: =AD11+AL5 -> 27.001 | AM7: =AD11 -> 27 | AR7: Fix | AS7: =IF($AA$40<>0,AD11-AD7,#N/A) -> 0 | AT7: =IF($AA$40<>0,AD12-AD8,#N/A) -> 0
C8: Longitude | D8: 80 | E8: ° | F8: 0 | G8: ' | H8: 0 | I8: '' | J8: W | AC8: Lon1 | AD8: =-(Buoy!D8+Buoy!F8/60+Buoy!H8/60/60) -> -80 | AE8: =AD8*PI()/180 -> -1.396263402 | AL8: =AD12 -> -80 | AM8: =AD12+AM5 -> -79.999 | AR8: AP | AS8: =IF($AA$40<>0,0,#N/A) -> 0 | AT8: =IF($AA$40<>0,0,#N/A) -> 0
D9: 12 | AL9: =AL7*PI()/180 -> 0.4712563513 | AM9: =AM7*PI()/180 -> 0.471238898
C10: AP (Assigned Position) | AL10: =AL8*PI()/180 -> -1.396263402 | AM10: =AM8*PI()/180 -> -1.396245948
C11: Latitude | D11: 27 | E11: ° | F11: 0 | G11: ' | H11: 0 | I11: '' | J11: N | AC11: Lat2 | AD11: =Buoy!D11+Buoy!F11/60+Buoy!H11/60/60 -> 27 | AE11: =AD11*PI()/180 -> 0.471238898 | AL11: =AD11 -> 27 | AM11: =AD11 -> 27
C12: Longitude | D12: 80 | E12: ° | F12: 0 | G12: ' | H12: 0 | I12: '' | J12: W | AC12: Lon2 | AD12: =-(Buoy!D12+Buoy!F12/60+Buoy!H12/60/60) -> -80 | AE12: =AD12*PI()/180 -> -1.396263402 | AL12: =AD12 -> -80 | AM12: =AD12 -> -80
AL13: =AL11*PI()/180 -> 0.471238898 | AM13: =AM11*PI()/180 -> 0.471238898
C14: GPS Error | D14: Type | F14: Error Value | H14: Unit | AL14: =AL12*PI()/180 -> -1.396263402 | AM14: =AM12*PI()/180 -> -1.396263402 | AS14: PT circle | AV14: 2DRMS
D15: DRMS | F15: 10 | H15: feet | AL15: 3443.89849 | AM15: 3443.89849 | AQ15: 0 | AR15: =AQ15*PI()/180 -> 0 | AS15: =$AS$8+$AS$4*SIN(AR15) -> 0 | AT15: =$AT$8+$AS$3*COS(AR15) -> 0.0002304764998 | AV15: =$AS$7+$AT$4*SIN(AR15) -> 0 | AW15: =$AT$7+$AT$3*COS(AR15) -> 6.146039994e-05
AL16: =AL13-AL9 -> -1.745329252e-05 | AM16: =AM13-AM9 -> 0 | AQ16: 1 | AR16: 0.01745329252 | AS16: 3.58395751e-06 | AT16: 0.0002304413971 | AV16: 9.557220027e-07 | AW16: 6.145103922e-05
C17: Waterway Type | D17: Deep/Shallow Water Not Maintained-Unrestricted | AA17: 2DMRS | AC17: Maxiumum 2DRMS | AE17: =9*3.2808 -> 29.5272 | AF17: ft | AL17: =AL14-AL10 -> 0 | AM17: =AM14-AM10 -> -1.745329252e-05 | AQ17: 2 | AR17: 0.03490658504 | AS17: 7.166823312e-06 | AT17: 0.0002303360997 | AV17: 1.911152883e-06 | AW17: 6.142295993e-05
C18: =IF(LEN(D18),"Positioning Tolerance","") -> Positioning Tolerance | D18: =IF(D17="Deep/Shallow Water Maintained-Restricted",15,IF(D17="Deep/Shallow Water Not Maintained-Unrestricted",25,IF(D17="Sea Coastal and Coastal",40,""))) -> 25 | F18: =IF(LEN(D18),"yards","") -> yards | AA18: =VLOOKUP(D15,'Fixed Aid'!$Z$8:$AA$13,2,FALSE)*F15 -> 20 | AB18: =H15 -> feet | AL18: =(SIN($AL$16/2))^2+COS($AL$9)*COS($AL$13)*(SIN($AL$17/2))^2 -> 7.615435494e-11 | AM18: =(SIN($AM$16/2))^2+COS($AM$9)*COS($AM$13)*(SIN($AM$17/2))^2 -> 6.045838084e-11 | AQ18: 3 | AR18: 0.05235987756 | AS18: 1.074750603e-05 | AT18: 0.0002301606397 | AV18: 2.866001608e-06 | AW18: 6.13761706e-05
AA19: =VLOOKUP(D15,'Fixed Aid'!$Z$8:$AA$13,2,FALSE)*F15*VLOOKUP(H15,'Fixed Aid'!$Z$14:$AB$16,3,FALSE) -> 20 | AB19: feet | AD19: =IF(Buoy!AA19/3<>0,Buoy!AA19/3,"") -> 6.666666667 | AE19: yards | AL19: =2*ATAN2(SQRT(1-$AL$18),SQRT($AL$18)) -> 1.745329252e-05 | AM19: =2*ATAN2(SQRT(1-$AM$18),SQRT($AM$18)) -> 1.55509975e-05 | AQ19: 4 | AR19: 0.06981317008 | AS19: 1.432491495e-05 | AT19: 0.0002299150706 | AV19: 3.819977321e-06 | AW19: 6.13106855e-05
AQ20: 5 | AR20: 0.0872664626 | AS20: 1.789796037e-05 | AT20: 0.0002295994671 | AV20: 4.772789432e-06 | AW20: 6.122652456e-05
C21: =IF($AA$40<>0,"Distance from Fix to AP","") -> Distance from Fix to AP | D21: =IF($AA$40>0,TEXT(AA25,"0.00"& " ft"),"") -> 0.00 ft | F21: =IF($AA$40>0,"= "&TEXT(AA26,"0.00")&" yd","") -> = 0.00 yd | AL21: =AL19*AL15 -> 0.06010736775 | AM21: =AM19*AM15 -> 0.05355605682 | AQ21: 6 | AR21: 0.1047197551 | AS21: 2.146555389e-05 | AT21: 0.0002292139254 | AV21: 5.724147705e-06 | AW21: 6.112371344e-05
AA22: =SUM(AB22:AE22) -> 1 | AC22: =IF(Buoy!$D$18=15,1,"") ->  | AD22: =IF(Buoy!$D$18=25,1,"") -> 1 | AE22: =IF(Buoy!$D$18=40,1,"") ->  | AL22: =AL21*6076.11549/3 -> 121.7397694 | AM22: =AM21*6076.11549/3 -> 108.4709288 | AQ22: 7 | AR22: 0.1221730476 | AS22: 2.50266088e-05 | AT22: 0.0002287585629 | AV22: 6.673762347e-06 | AW22: 6.100228344e-05
C23: =IF($AA$40<>0,"Bearing from Fix to AP","") -> Bearing from Fix to AP | D23: =IF(Buoy!$AA$40>0,Buoy!AA28,"") ->  | E23: =IF($AA$40<>0,"° T","") -> ° T | AQ23: 8 | AR23: 0.1396263402 | AS23: 2.858004036e-05 | AT23: 0.0002282335183 | AV23: 7.621344097e-06 | AW23: 6.086227155e-05
AG24: APP - MP + 2DRMS < PT | AQ24: 9 | AR24: 0.1570796327 | AS24: 3.212476617e-05 | AT24: 0.0002276389516 | AV24: 8.566604311e-06 | AW24: 6.070372043e-05
C25: =IF($AA$40<>0,"2DRMS","") -> 2DRMS | D25: =IF($AA$40>0,TEXT(AA19,"0.00"& " ft"),"") -> 20.00 ft | F25: =IF($AA$40<>0,IF(AA19/3<>0,"= "&TEXT(AA19/3,"0.00")&" yd",""),"") -> = 6.67 yd | AA25: =IFERROR($AD$36*6076.11549,"") -> 0 | AC25: r | AD25: 3443.89849 | AE25: nm | AG25: MPP to AP | AH25: =AA25 -> 0 | AQ25: 10 | AR25: 0.1745329252 | AS25: 3.565970646e-05 | AT25: 0.0002269750439 | AV25: 9.509255055e-06 | AW25: 6.052667836e-05
C26: =IF(AA19>AE17,"2DRMS EXCEEDS MAX 29.5ft - CANNOT USE THE FIX","") ->  | AA26: =AA25/3 -> 0 | AG26: 2DRMS | AH26: =Buoy!AA19 -> 20 | AQ26: 11 | AR26: 0.1919862177 | AS26: 3.918378445e-05 | AT26: 0.0002262419973 | AV26: 1.044900919e-05 | AW26: 6.033119929e-05
AG27: SUM | AH27: =AH26+AH25 -> 20 | AQ27: 12 | AR27: 0.2094395102 | AS27: 4.269592669e-05 | AT27: 0.0002254400353 | AV27: 1.138558045e-05 | AW27: 6.011734274e-05
C28: =IF(Buoy!AH31=1,"BUOY IS ON STATION (Within Positioning Tolerance)", IF(Buoy!$AH$31=2,"BUOY IS OFF STATION","")) -> BUOY IS ON STATION (Within Positioning Tolerance) | J28: =Buoy!AH31 -> 1 | AA28: =IFERROR(AD34*180/PI(),"") ->  | AC28: dLat | AD28: =AE11-AE7 -> 0 | AG28: YARDS | AH28: =AH27/3 -> 6.666666667 | AQ28: 13 | AR28: 0.2268928028 | AS28: 4.619506333e-05 | AT28: 0.000224569402 | AV28: 1.231868356e-05 | AW28: 5.988517387e-05
AC29: dLon | AD29: =AE12-AE8 -> 0 | AG29: PT | AH29: =Buoy!D18 -> 25 | AQ29: 14 | AR29: 0.2443460953 | AS29: 4.968012851e-05 | AT29: 0.0002236303627 | AV29: 1.324803427e-05 | AW29: 5.96347634e-05
C30: IF [(AP to MPP) + 2DRMS] > PT, BUOY IS OFF STATION | AC30: a | AD30: =(SIN($AD$28/2))^2+COS($AE$7)*COS($AE$11)*(SIN($AD$29/2))^2 -> 0 | AG30: PT-YARDS | AH30: =AH29-AH28 -> 18.33333333 | AQ30: 15 | AR30: 0.2617993878 | AS30: 5.315006064e-05 | AT30: 0.0002226232035 | AV30: 1.41733495e-05 | AW30: 5.93661876e-05
M31: Quick conversion tool: | AC31: c | AD31: =2*ATAN2(SQRT(1-$AD$30),SQRT($AD$30)) -> 0 | AG31: Y/N | AH31: =IF(AND(AA39,AA40),IFERROR(MAX(AI31:AJ31),""),"") -> 1 | AI31: =IF(AND($AH$30<>0,$AH$30>0),1,0) -> 1 | AJ31: =IF(AND($AH$30<>0,$AH$30<0),2,0) -> 0 | AQ31: 16 | AR31: 0.2792526803 | AS31: 5.660380275e-05 | AT31: 0.000221548231 | AV31: 1.50943474e-05 | AW31: 5.907952828e-05
M32: Decimal | O32: 32.695255 | Q32: -79.883473 | AQ32: 17 | AR32: 0.2967059728 | AS32: 6.004030279e-05 | AT32: 0.0002204057729 | AV32: 1.601074741e-05 | AW32: 5.877487277e-05
C33: District 7 recommends that you save this file as a pdf and include it with Form 7054. | M33: DM | O33: =TEXT(O34,"[hh]° mm") & TEXT((O34*24*60-TRUNC(O34*24*60)),".0000'") -> 32° 41.7153' | Q33: =TEXT(Q34,"[hh]° mm") & TEXT((Q34*24*60-TRUNC(Q34*24*60)),".0000'") -> 79° 53.0084' | AA33: DM | AQ33: 18 | AR33: 0.3141592654 | AS33: 6.345851397e-05 | AT33: 0.000219196177 | AV33: 1.692227039e-05 | AW33: 5.845231386e-05
M34: DMS | O34: =ABS(O32)/24 -> 1.362302292 | Q34: =ABS(Q32/24) -> 3.328478042 | AA34: =TEXT(Buoy!O32,"[hh]° mm") & TEXT((Buoy!O32*24*60-TRUNC(Buoy!O32*24*60)),".0000'") -> 784° 41.1672' | AC34: Bearing | AD34: =MOD(ATAN2((COS($AE$7)*SIN($AE$11))-(SIN($AE$7)*COS($AE$11)*COS($AE$12-$AE$8)), SIN($AE$12-$AE$8)*COS($AE$11)),2*PI()) ->  | AQ34: 19 | AR34: 0.3316125579 | AS34: 6.685739508e-05 | AT34: 0.0002179198118 | AV34: 1.782863869e-05 | AW34: 5.811194981e-05
AQ35: 20 | AR35: 0.3490658504 | AS35: 7.023591077e-05 | AT35: 0.0002165770661 | AV35: 1.872957621e-05 | AW35: 5.775388429e-05
C36: U.S.C.G. AUXILIARY SEVENTH DISTRICT NAVIGATION SYSTEMS | AD36: =AD31*AD25 -> 0 | AE36: nm | AH36: ADD PT value present check here | AQ36: 21 | AR36: 0.3665191429 | AS36: 7.359303193e-05 | AT36: 0.000215168349 | AV36: 1.962480851e-05 | AW36: 5.737822639e-05
C37: D7NS 1010 SEPTEMBER 12, 2022 | AQ37: 22 | AR37: 0.3839724354 | AS37: 7.692773594e-05 | AT37: 0.0002136940895 | AV37: 2.051406292e-05 | AW37: 5.698509052e-05
AQ38: 23 | AR38: 0.401425728 | AS38: 8.023900701e-05 | AT38: 0.0002121547367 | AV38: 2.139706854e-05 | AW38: 5.657459644e-05
AA39: =LEN(C26)=0 -> TRUE | AQ39: 24 | AR39: 0.4188790205 | AS39: 8.35258365e-05 | AT39: 0.0002105507595 | AV39: 2.22735564e-05 | AW39: 5.614686919e-05
AA40: =IF(AND(AB40,AC40,AD40),1,0) -> 1 | AB40: =COUNTA(D7,D8,F7,F8,H7,H8,F11,F12,H11,H12,D11,D12,F15,D15,H15)=15 -> TRUE | AC40: =NOT(ISERROR(SUM(AD7:AD8,AD11:AD12))) -> TRUE | AD40: =D17<>" -- Select Waterway Type --" -> TRUE | AQ40: 25 | AR40: 0.436332313 | AS40: 8.678722322e-05 | AT40: 0.0002088826465 | AV40: 2.314325952e-05 | AW40: 5.570203906e-05
AQ41: 26 | AR41: 0.4537856055 | AS41: 9.00221737e-05 | AT41: 0.0002071509058 | AV41: 2.400591299e-05 | AW41: 5.524024155e-05
AQ42: 27 | AR42: 0.471238898 | AS42: 9.322970256e-05 | AT42: 0.000205356065 | AV42: 2.486125402e-05 | AW42: 5.476161733e-05
AQ43: 28 | AR43: 0.4886921906 | AS43: 9.640883275e-05 | AT43: 0.0002034986707 | AV43: 2.570902207e-05 | AW43: 5.426631218e-05
AQ44: 29 | AR44: 0.5061454831 | AS44: 9.955859587e-05 | AT44: 0.0002015792887 | AV44: 2.65489589e-05 | AW44: 5.3754477e-05
AQ45: 30 | AR45: 0.5235987756 | AS45: 0.0001026780325 | AT45: 0.0001995985038 | AV45: 2.738080866e-05 | AW45: 5.322626768e-05
AQ46: 31 | AR46: 0.5410520681 | AS46: 0.0001057661924 | AT46: 0.0001975569192 | AV46: 2.820431797e-05 | AW46: 5.268184512e-05
AQ47: 32 | AR47: 0.5585053606 | AS47: 0.0001088221349 | AT47: 0.0001954551568 | AV47: 2.901923596e-05 | AW47: 5.212137516e-05
AQ48: 33 | AR48: 0.5759586532 | AS48: 0.0001118449291 | AT48: 0.000193293857 | AV48: 2.982531442e-05 | AW48: 5.154502852e-05
AQ49: 34 | AR49: 0.5934119457 | AS49: 0.0001148336542 | AT49: 0.0001910736779 | AV49: 3.062230779e-05 | AW49: 5.095298077e-05
AQ50: 35 | AR50: 0.6108652382 | AS50: 0.0001177873999 | AT50: 0.000188795296 | AV50: 3.140997331e-05 | AW50: 5.034541225e-05
AQ51: 36 | AR51: 0.6283185307 | AS51: 0.0001207052665 | AT51: 0.0001864594051 | AV51: 3.218807106e-05 | AW51: 4.972250803e-05
AQ52: 37 | AR52: 0.6457718232 | AS52: 0.000123586365 | AT52: 0.000184066717 | AV52: 3.2956364e-05 | AW52: 4.908445785e-05
AQ53: 38 | AR53: 0.6632251158 | AS53: 0.0001264298179 | AT53: 0.0001816179603 | AV53: 3.371461811e-05 | AW53: 4.843145607e-05
AQ54: 39 | AR54: 0.6806784083 | AS54: 0.0001292347591 | AT54: 0.000179113881 | AV54: 3.446260243e-05 | AW54: 4.77637016e-05
AQ55: 40 | AR55: 0.6981317008 | AS55: 0.0001320003341 | AT55: 0.0001765552419 | AV55: 3.52000891e-05 | AW55: 4.708139785e-05
AQ56: 41 | AR56: 0.7155849933 | AS56: 0.0001347257006 | AT56: 0.0001739428224 | AV56: 3.592685349e-05 | AW56: 4.638475264e-05
AA57: 32 | AB57: 41 | AQ57: 42 | AR57: 0.7330382858 | AS57: 0.0001374100283 | AT57: 0.0001712774182 | AV57: 3.664267421e-05 | AW57: 4.567397819e-05
AA58: 79 | AB58: 53 | AQ58: 43 | AR58: 0.7504915784 | AS58: 0.0001400524995 | AT58: 0.0001685598412 | AV58: 3.734733321e-05 | AW58: 4.4949291e-05
AQ59: 44 | AR59: 0.7679448709 | AS59: 0.0001426523095 | AT59: 0.0001657909193 | AV59: 3.804061586e-05 | AW59: 4.421091182e-05
AQ60: 45 | AR60: 0.7853981634 | AS60: 0.0001452086661 | AT60: 0.0001629714959 | AV60: 3.872231096e-05 | AW60: 4.345906557e-05
AA61: 32 | AB61: 41 | AQ61: 46 | AR61: 0.8028514559 | AS61: 0.0001477207908 | AT61: 0.0001601024298 | AV61: 3.939221087e-05 | AW61: 4.269398127e-05
AA62: 79 | AB62: 53 | AQ62: 47 | AR62: 0.8203047484 | AS62: 0.0001501879183 | AT62: 0.0001571845949 | AV62: 4.005011154e-05 | AW62: 4.191589197e-05
AQ63: 48 | AR63: 0.837758041 | AS63: 0.0001526092971 | AT63: 0.00015421888 | AV63: 4.069581255e-05 | AW63: 4.112503468e-05
AQ64: 49 | AR64: 0.8552113335 | AS64: 0.0001549841896 | AT64: 0.0001512061886 | AV64: 4.132911722e-05 | AW64: 4.032165031e-05
AQ65: 50 | AR65: 0.872664626 | AS65: 0.0001573118724 | AT65: 0.0001481474384 | AV65: 4.194983265e-05 | AW65: 3.950598357e-05
AQ66: 51 | AR66: 0.8901179185 | AS66: 0.0001595916366 | AT66: 0.000145043561 | AV66: 4.255776975e-05 | AW66: 3.867828292e-05
AQ67: 52 | AR67: 0.907571211 | AS67: 0.0001618227875 | AT67: 0.0001418955019 | AV67: 4.315274334e-05 | AW67: 3.78388005e-05
AQ68: 53 | AR68: 0.9250245036 | AS68: 0.0001640046457 | AT68: 0.00013870422 | AV68: 4.373457218e-05 | AW68: 3.698779201e-05
AQ69: 54 | AR69: 0.9424777961 | AS69: 0.0001661365465 | AT69: 0.0001354706876 | AV69: 4.430307906e-05 | AW69: 3.612551668e-05
AQ70: 55 | AR70: 0.9599310886 | AS70: 0.0001682178404 | AT70: 0.0001321958894 | AV70: 4.485809078e-05 | AW70: 3.525223717e-05
AQ71: 56 | AR71: 0.9773843811 | AS71: 0.0001702478936 | AT71: 0.0001288808231 | AV71: 4.53994383e-05 | AW71: 3.436821949e-05
AQ72: 57 | AR72: 0.9948376736 | AS72: 0.0001722260876 | AT72: 0.0001255264984 | AV72: 4.59269567e-05 | AW72: 3.347373292e-05
AQ73: 58 | AR73: 1.012290966 | AS73: 0.0001741518199 | AT73: 0.0001221339372 | AV73: 4.644048532e-05 | AW73: 3.256904992e-05
AQ74: 59 | AR74: 1.029744259 | AS74: 0.0001760245039 | AT74: 0.0001187041728 | AV74: 4.693986771e-05 | AW74: 3.165444607e-05
AQ75: 60 | AR75: 1.047197551 | AS75: 0.0001778435691 | AT75: 0.0001152382499 | AV75: 4.742495176e-05 | AW75: 3.073019997e-05
AQ76: 61 | AR76: 1.064650844 | AS76: 0.0001796084614 | AT76: 0.0001117372243 | AV76: 4.789558971e-05 | AW76: 2.979659316e-05
AQ77: 62 | AR77: 1.082104136 | AS77: 0.0001813186432 | AT77: 0.0001082021625 | AV77: 4.83516382e-05 | AW77: 2.885391001e-05
AQ78: 63 | AR78: 1.099557429 | AS78: 0.0001829735937 | AT78: 0.0001046341413 | AV78: 4.879295831e-05 | AW78: 2.790243768e-05
AQ79: 64 | AR79: =AQ79*PI()/180 -> 1.117010721 | AS79: =$AS$8+$AS$4*SIN(AR79) -> 0.0001845728086 | AT79: =$AT$8+$AS$3*COS(AR79) -> 0.0001010342475 | AV79: =$AS$7+$AT$4*SIN(AR79) -> 4.921941562e-05 | AW79: =$AT$7+$AT$3*COS(AR79) -> 2.6942466e-05
AQ80: 65 | AR80: 1.134464014 | AS80: 0.0001861158008 | AT80: 9.740357771e-05 | AV80: 4.963088021e-05 | AW80: 2.597428739e-05
AQ81: 66 | AR81: 1.151917306 | AS81: 0.0001876021004 | AT81: 9.374323783e-05 | AV81: 5.002722676e-05 | AW81: 2.499819675e-05
AQ82: 67 | AR82: 1.169370599 | AS82: 0.0001890312545 | AT82: 9.005434285e-05 | AV82: 5.040833453e-05 | AW82: 2.401449143e-05
AQ83: 68 | AR83: 1.186823891 | AS83: 0.0001904028279 | AT83: 8.633801644e-05 | AV83: 5.077408743e-05 | AW83: 2.302347105e-05
AQ84: 69 | AR84: 1.204277184 | AS84: 0.0001917164027 | AT84: 8.259539064e-05 | AV84: 5.112437406e-05 | AW84: 2.20254375e-05
AQ85: 70 | AR85: 1.221730476 | AS85: 0.0001929715789 | AT85: 7.882760549e-05 | AV85: 5.14590877e-05 | AW85: 2.10206948e-05
AQ86: 71 | AR86: 1.239183769 | AS86: 0.000194167974 | AT86: 7.503580868e-05 | AV86: 5.177812641e-05 | AW86: 2.000954898e-05
AQ87: 72 | AR87: 1.256637061 | AS87: 0.0001953052238 | AT87: 7.122115524e-05 | AV87: 5.2081393e-05 | AW87: 1.899230806e-05
AQ88: 73 | AR88: 1.274090354 | AS88: 0.0001963829816 | AT88: 6.738480714e-05 | AV88: 5.236879509e-05 | AW88: 1.79692819e-05
AQ89: 74 | AR89: 1.291543646 | AS89: 0.0001974009193 | AT89: 6.352793298e-05 | AV89: 5.264024514e-05 | AW89: 1.694078213e-05
AQ90: 75 | AR90: 1.308996939 | AS90: 0.0001983587267 | AT90: 5.965170759e-05 | AV90: 5.289566046e-05 | AW90: 1.590712202e-05
AQ91: 76 | AR91: 1.326450232 | AS91: 0.0001992561122 | AT91: 5.575731172e-05 | AV91: 5.313496326e-05 | AW91: 1.486861646e-05
AQ92: 77 | AR92: 1.343903524 | AS92: 0.0002000928023 | AT92: 5.184593163e-05 | AV92: 5.335808062e-05 | AW92: 1.382558177e-05
AQ93: 78 | AR93: 1.361356817 | AS93: 0.0002008685422 | AT93: 4.791875876e-05 | AV93: 5.35649446e-05 | AW93: 1.277833567e-05
AQ94: 79 | AR94: 1.378810109 | AS94: 0.0002015830957 | AT94: 4.397698938e-05 | AV94: 5.375549218e-05 | AW94: 1.172719717e-05
AQ95: 80 | AR95: 1.396263402 | AS95: 0.0002022362449 | AT95: 4.002182418e-05 | AV95: 5.392966531e-05 | AW95: 1.067248645e-05
AQ96: 81 | AR96: 1.413716694 | AS96: 0.000202827791 | AT96: 3.605446795e-05 | AV96: 5.408741094e-05 | AW96: 9.614524786e-06
AQ97: 82 | AR97: 1.431169987 | AS97: 0.0002033575539 | AT97: 3.207612917e-05 | AV97: 5.422868103e-05 | AW97: 8.553634446e-06
AQ98: 83 | AR98: 1.448623279 | AS98: 0.000203825372 | AT98: 2.80880197e-05 | AV98: 5.435343253e-05 | AW98: 7.490138586e-06
AQ99: 84 | AR99: 1.466076572 | AS99: 0.000204231103 | AT99: 2.409135434e-05 | AV99: 5.446162746e-05 | AW99: 6.424361158e-06
AQ100: 85 | AR100: 1.483529864 | AS100: 0.0002045746231 | AT100: 2.008735052e-05 | AV100: 5.455323284e-05 | AW100: 5.356626806e-06
AQ101: 86 | AR101: 1.500983157 | AS101: 0.0002048558279 | AT101: 1.607722791e-05 | AV101: 5.462822078e-05 | AW101: 4.287260775e-06
AQ102: 87 | AR102: 1.518436449 | AS102: 0.0002050746316 | AT102: 1.206220801e-05 | AV102: 5.468656843e-05 | AW102: 3.216588802e-06
AQ103: 88 | AR103: 1.535889742 | AS103: 0.0002052309676 | AT103: 8.043513844e-06 | AV103: 5.472825803e-05 | AW103: 2.144937025e-06
AQ104: 89 | AR104: 1.553343034 | AS104: 0.0002053247882 | AT104: 4.022369548e-06 | AV104: 5.475327687e-05 | AW104: 1.07263188e-06
AQ105: 90 | AR105: 1.570796327 | AS105: 0.000205356065 | AT105: 1.411839638e-20 | AV105: 5.476161733e-05 | AW105: 3.764905701e-21
AQ106: 91 | AR106: 1.588249619 | AS106: 0.0002053247882 | AT106: -4.022369548e-06 | AV106: 5.475327687e-05 | AW106: -1.07263188e-06
AQ107: 92 | AR107: 1.605702912 | AS107: 0.0002052309676 | AT107: -8.043513844e-06 | AV107: 5.472825803e-05 | AW107: -2.144937025e-06
AQ108: 93 | AR108: 1.623156204 | AS108: 0.0002050746316 | AT108: -1.206220801e-05 | AV108: 5.468656843e-05 | AW108: -3.216588802e-06
AQ109: 94 | AR109: 1.640609497 | AS109: 0.0002048558279 | AT109: -1.607722791e-05 | AV109: 5.462822078e-05 | AW109: -4.287260775e-06
AQ110: 95 | AR110: 1.658062789 | AS110: 0.0002045746231 | AT110: -2.008735052e-05 | AV110: 5.455323284e-05 | AW110: -5.356626806e-06
AQ111: 96 | AR111: 1.675516082 | AS111: 0.000204231103 | AT111: -2.409135434e-05 | AV111: 5.446162746e-05 | AW111: -6.424361158e-06
AQ112: 97 | AR112: 1.692969374 | AS112: 0.000203825372 | AT112: -2.80880197e-05 | AV112: 5.435343253e-05 | AW112: -7.490138586e-06
AQ113: 98 | AR113: 1.710422667 | AS113: 0.0002033575539 | AT113: -3.207612917e-05 | AV113: 5.422868103e-05 | AW113: -8.553634446e-06
AQ114: 99 | AR114: 1.727875959 | AS114: 0.000202827791 | AT114: -3.605446795e-05 | AV114: 5.408741094e-05 | AW114: -9.614524786e-06
AQ115: 100 | AR115: 1.745329252 | AS115: 0.0002022362449 | AT115: -4.002182418e-05 | AV115: 5.392966531e-05 | AW115: -1.067248645e-05
AQ116: 101 | AR116: 1.762782545 | AS116: 0.0002015830957 | AT116: -4.397698938e-05 | AV116: 5.375549218e-05 | AW116: -1.172719717e-05
AQ117: 102 | AR117: 1.780235837 | AS117: 0.0002008685422 | AT117: -4.791875876e-05 | AV117: 5.35649446e-05 | AW117: -1.277833567e-05
AQ118: 103 | AR118: 1.79768913 | AS118: 0.0002000928023 | AT118: -5.184593163e-05 | AV118: 5.335808062e-05 | AW118: -1.382558177e-05
AQ119: 104 | AR119: 1.815142422 | AS119: 0.0001992561122 | AT119: -5.575731172e-05 | AV119: 5.313496326e-05 | AW119: -1.486861646e-05
AQ120: 105 | AR120: 1.832595715 | AS120: 0.0001983587267 | AT120: -5.965170759e-05 | AV120: 5.289566046e-05 | AW120: -1.590712202e-05
AQ121: 106 | AR121: 1.850049007 | AS121: 0.0001974009193 | AT121: -6.352793298e-05 | AV121: 5.264024514e-05 | AW121: -1.694078213e-05
AQ122: 107 | AR122: 1.8675023 | AS122: 0.0001963829816 | AT122: -6.738480714e-05 | AV122: 5.236879509e-05 | AW122: -1.79692819e-05
AQ123: 108 | AR123: 1.884955592 | AS123: 0.0001953052238 | AT123: -7.122115524e-05 | AV123: 5.2081393e-05 | AW123: -1.899230806e-05
AQ124: 109 | AR124: 1.902408885 | AS124: 0.000194167974 | AT124: -7.503580868e-05 | AV124: 5.177812641e-05 | AW124: -2.000954898e-05
AQ125: 110 | AR125: 1.919862177 | AS125: 0.0001929715789 | AT125: -7.882760549e-05 | AV125: 5.14590877e-05 | AW125: -2.10206948e-05
AQ126: 111 | AR126: 1.93731547 | AS126: 0.0001917164027 | AT126: -8.259539064e-05 | AV126: 5.112437406e-05 | AW126: -2.20254375e-05
AQ127: 112 | AR127: 1.954768762 | AS127: 0.0001904028279 | AT127: -8.633801644e-05 | AV127: 5.077408743e-05 | AW127: -2.302347105e-05
AQ128: 113 | AR128: 1.972222055 | AS128: 0.0001890312545 | AT128: -9.005434285e-05 | AV128: 5.040833453e-05 | AW128: -2.401449143e-05
AQ129: 114 | AR129: 1.989675347 | AS129: 0.0001876021004 | AT129: -9.374323783e-05 | AV129: 5.002722676e-05 | AW129: -2.499819675e-05
AQ130: 115 | AR130: 2.00712864 | AS130: 0.0001861158008 | AT130: -9.740357771e-05 | AV130: 4.963088021e-05 | AW130: -2.597428739e-05
AQ131: 116 | AR131: 2.024581932 | AS131: 0.0001845728086 | AT131: -0.0001010342475 | AV131: 4.921941562e-05 | AW131: -2.6942466e-05
AQ132: 117 | AR132: 2.042035225 | AS132: 0.0001829735937 | AT132: -0.0001046341413 | AV132: 4.879295831e-05 | AW132: -2.790243768e-05
AQ133: 118 | AR133: 2.059488517 | AS133: 0.0001813186432 | AT133: -0.0001082021625 | AV133: 4.83516382e-05 | AW133: -2.885391001e-05
AQ134: 119 | AR134: 2.07694181 | AS134: 0.0001796084614 | AT134: -0.0001117372243 | AV134: 4.789558971e-05 | AW134: -2.979659316e-05
AQ135: 120 | AR135: 2.094395102 | AS135: 0.0001778435691 | AT135: -0.0001152382499 | AV135: 4.742495176e-05 | AW135: -3.073019997e-05
AQ136: 121 | AR136: 2.111848395 | AS136: 0.0001760245039 | AT136: -0.0001187041728 | AV136: 4.693986771e-05 | AW136: -3.165444607e-05
AQ137: 122 | AR137: 2.129301687 | AS137: 0.0001741518199 | AT137: -0.0001221339372 | AV137: 4.644048532e-05 | AW137: -3.256904992e-05
AQ138: 123 | AR138: 2.14675498 | AS138: 0.0001722260876 | AT138: -0.0001255264984 | AV138: 4.59269567e-05 | AW138: -3.347373292e-05
AQ139: 124 | AR139: 2.164208272 | AS139: 0.0001702478936 | AT139: -0.0001288808231 | AV139: 4.53994383e-05 | AW139: -3.436821949e-05
AQ140: 125 | AR140: 2.181661565 | AS140: 0.0001682178404 | AT140: -0.0001321958894 | AV140: 4.485809078e-05 | AW140: -3.525223717e-05
AQ141: 126 | AR141: 2.199114858 | AS141: 0.0001661365465 | AT141: -0.0001354706876 | AV141: 4.430307906e-05 | AW141: -3.612551668e-05
AQ142: 127 | AR142: 2.21656815 | AS142: 0.0001640046457 | AT142: -0.00013870422 | AV142: 4.373457218e-05 | AW142: -3.698779201e-05
AQ143: 128 | AR143: =AQ143*PI()/180 -> 2.234021443 | AS143: =$AS$8+$AS$4*SIN(AR143) -> 0.0001618227875 | AT143: =$AT$8+$AS$3*COS(AR143) -> -0.0001418955019 | AV143: =$AS$7+$AT$4*SIN(AR143) -> 4.315274334e-05 | AW143: =$AT$7+$AT$3*COS(AR143) -> -3.78388005e-05
AQ144: 129 | AR144: 2.251474735 | AS144: 0.0001595916366 | AT144: -0.000145043561 | AV144: 4.255776975e-05 | AW144: -3.867828292e-05
AQ145: 130 | AR145: 2.268928028 | AS145: 0.0001573118724 | AT145: -0.0001481474384 | AV145: 4.194983265e-05 | AW145: -3.950598357e-05
AQ146: 131 | AR146: 2.28638132 | AS146: 0.0001549841896 | AT146: -0.0001512061886 | AV146: 4.132911722e-05 | AW146: -4.032165031e-05
AQ147: 132 | AR147: 2.303834613 | AS147: 0.0001526092971 | AT147: -0.00015421888 | AV147: 4.069581255e-05 | AW147: -4.112503468e-05
AQ148: 133 | AR148: 2.321287905 | AS148: 0.0001501879183 | AT148: -0.0001571845949 | AV148: 4.005011154e-05 | AW148: -4.191589197e-05
AQ149: 134 | AR149: 2.338741198 | AS149: 0.0001477207908 | AT149: -0.0001601024298 | AV149: 3.939221087e-05 | AW149: -4.269398127e-05
AQ150: 135 | AR150: 2.35619449 | AS150: 0.0001452086661 | AT150: -0.0001629714959 | AV150: 3.872231096e-05 | AW150: -4.345906557e-05
AQ151: 136 | AR151: 2.373647783 | AS151: 0.0001426523095 | AT151: -0.0001657909193 | AV151: 3.804061586e-05 | AW151: -4.421091182e-05
AQ152: 137 | AR152: 2.391101075 | AS152: 0.0001400524995 | AT152: -0.0001685598412 | AV152: 3.734733321e-05 | AW152: -4.4949291e-05
AQ153: 138 | AR153: 2.408554368 | AS153: 0.0001374100283 | AT153: -0.0001712774182 | AV153: 3.664267421e-05 | AW153: -4.567397819e-05
AQ154: 139 | AR154: 2.42600766 | AS154: 0.0001347257006 | AT154: -0.0001739428224 | AV154: 3.592685349e-05 | AW154: -4.638475264e-05
AQ155: 140 | AR155: 2.443460953 | AS155: 0.0001320003341 | AT155: -0.0001765552419 | AV155: 3.52000891e-05 | AW155: -4.708139785e-05
AQ156: 141 | AR156: 2.460914245 | AS156: 0.0001292347591 | AT156: -0.000179113881 | AV156: 3.446260243e-05 | AW156: -4.77637016e-05
AQ157: 142 | AR157: 2.478367538 | AS157: 0.0001264298179 | AT157: -0.0001816179603 | AV157: 3.371461811e-05 | AW157: -4.843145607e-05
AQ158: 143 | AR158: 2.49582083 | AS158: 0.000123586365 | AT158: -0.000184066717 | AV158: 3.2956364e-05 | AW158: -4.908445785e-05
AQ159: 144 | AR159: 2.513274123 | AS159: 0.0001207052665 | AT159: -0.0001864594051 | AV159: 3.218807106e-05 | AW159: -4.972250803e-05
AQ160: 145 | AR160: 2.530727415 | AS160: 0.0001177873999 | AT160: -0.000188795296 | AV160: 3.140997331e-05 | AW160: -5.034541225e-05
AQ161: 146 | AR161: 2.548180708 | AS161: 0.0001148336542 | AT161: -0.0001910736779 | AV161: 3.062230779e-05 | AW161: -5.095298077e-05
AQ162: 147 | AR162: 2.565634 | AS162: 0.0001118449291 | AT162: -0.000193293857 | AV162: 2.982531442e-05 | AW162: -5.154502852e-05
AQ163: 148 | AR163: 2.583087293 | AS163: 0.0001088221349 | AT163: -0.0001954551568 | AV163: 2.901923596e-05 | AW163: -5.212137516e-05
AQ164: 149 | AR164: 2.600540585 | AS164: 0.0001057661924 | AT164: -0.0001975569192 | AV164: 2.820431797e-05 | AW164: -5.268184512e-05
AQ165: 150 | AR165: 2.617993878 | AS165: 0.0001026780325 | AT165: -0.0001995985038 | AV165: 2.738080866e-05 | AW165: -5.322626768e-05
AQ166: 151 | AR166: 2.635447171 | AS166: 9.955859587e-05 | AT166: -0.0002015792887 | AV166: 2.65489589e-05 | AW166: -5.3754477e-05
AQ167: 152 | AR167: 2.652900463 | AS167: 9.640883275e-05 | AT167: -0.0002034986707 | AV167: 2.570902207e-05 | AW167: -5.426631218e-05
AQ168: 153 | AR168: 2.670353756 | AS168: 9.322970256e-05 | AT168: -0.000205356065 | AV168: 2.486125402e-05 | AW168: -5.476161733e-05
AQ169: 154 | AR169: 2.687807048 | AS169: 9.00221737e-05 | AT169: -0.0002071509058 | AV169: 2.400591299e-05 | AW169: -5.524024155e-05
AQ170: 155 | AR170: 2.705260341 | AS170: 8.678722322e-05 | AT170: -0.0002088826465 | AV170: 2.314325952e-05 | AW170: -5.570203906e-05
AQ171: 156 | AR171: 2.722713633 | AS171: 8.35258365e-05 | AT171: -0.0002105507595 | AV171: 2.22735564e-05 | AW171: -5.614686919e-05
AQ172: 157 | AR172: 2.740166926 | AS172: 8.023900701e-05 | AT172: -0.0002121547367 | AV172: 2.139706854e-05 | AW172: -5.657459644e-05
AQ173: 158 | AR173: 2.757620218 | AS173: 7.692773594e-05 | AT173: -0.0002136940895 | AV173: 2.051406292e-05 | AW173: -5.698509052e-05
AQ174: 159 | AR174: 2.775073511 | AS174: 7.359303193e-05 | AT174: -0.000215168349 | AV174: 1.962480851e-05 | AW174: -5.737822639e-05
AQ175: 160 | AR175: 2.792526803 | AS175: 7.023591077e-05 | AT175: -0.0002165770661 | AV175: 1.872957621e-05 | AW175: -5.775388429e-05
AQ176: 161 | AR176: 2.809980096 | AS176: 6.685739508e-05 | AT176: -0.0002179198118 | AV176: 1.782863869e-05 | AW176: -5.811194981e-05
AQ177: 162 | AR177: 2.827433388 | AS177: 6.345851397e-05 | AT177: -0.000219196177 | AV177: 1.692227039e-05 | AW177: -5.845231386e-05
AQ178: 163 | AR178: 2.844886681 | AS178: 6.004030279e-05 | AT178: -0.0002204057729 | AV178: 1.601074741e-05 | AW178: -5.877487277e-05
AQ179: 164 | AR179: 2.862339973 | AS179: 5.660380275e-05 | AT179: -0.000221548231 | AV179: 1.50943474e-05 | AW179: -5.907952828e-05
AQ180: 165 | AR180: 2.879793266 | AS180: 5.315006064e-05 | AT180: -0.0002226232035 | AV180: 1.41733495e-05 | AW180: -5.93661876e-05
AQ181: 166 | AR181: 2.897246558 | AS181: 4.968012851e-05 | AT181: -0.0002236303627 | AV181: 1.324803427e-05 | AW181: -5.96347634e-05
AQ182: 167 | AR182: 2.914699851 | AS182: 4.619506333e-05 | AT182: -0.000224569402 | AV182: 1.231868356e-05 | AW182: -5.988517387e-05
AQ183: 168 | AR183: 2.932153143 | AS183: 4.269592669e-05 | AT183: -0.0002254400353 | AV183: 1.138558045e-05 | AW183: -6.011734274e-05
AQ184: 169 | AR184: 2.949606436 | AS184: 3.918378445e-05 | AT184: -0.0002262419973 | AV184: 1.044900919e-05 | AW184: -6.033119929e-05
AQ185: 170 | AR185: 2.967059728 | AS185: 3.565970646e-05 | AT185: -0.0002269750439 | AV185: 9.509255055e-06 | AW185: -6.052667836e-05
AQ186: 171 | AR186: 2.984513021 | AS186: 3.212476617e-05 | AT186: -0.0002276389516 | AV186: 8.566604311e-06 | AW186: -6.070372043e-05
AQ187: 172 | AR187: 3.001966313 | AS187: 2.858004036e-05 | AT187: -0.0002282335183 | AV187: 7.621344097e-06 | AW187: -6.086227155e-05
AQ188: 173 | AR188: 3.019419606 | AS188: 2.50266088e-05 | AT188: -0.0002287585629 | AV188: 6.673762347e-06 | AW188: -6.100228344e-05
AQ189: 174 | AR189: 3.036872898 | AS189: 2.146555389e-05 | AT189: -0.0002292139254 | AV189: 5.724147705e-06 | AW189: -6.112371344e-05
AQ190: 175 | AR190: 3.054326191 | AS190: 1.789796037e-05 | AT190: -0.0002295994671 | AV190: 4.772789432e-06 | AW190: -6.122652456e-05
AQ191: 176 | AR191: 3.071779484 | AS191: 1.432491495e-05 | AT191: -0.0002299150706 | AV191: 3.819977321e-06 | AW191: -6.13106855e-05
AQ192: 177 | AR192: 3.089232776 | AS192: 1.074750603e-05 | AT192: -0.0002301606397 | AV192: 2.866001608e-06 | AW192: -6.13761706e-05
AQ193: 178 | AR193: 3.106686069 | AS193: 7.166823312e-06 | AT193: -0.0002303360997 | AV193: 1.911152883e-06 | AW193: -6.142295993e-05
AQ194: 179 | AR194: 3.124139361 | AS194: 3.58395751e-06 | AT194: -0.0002304413971 | AV194: 9.557220027e-07 | AW194: -6.145103922e-05
AQ195: 180 | AR195: 3.141592654 | AS195: 2.515916657e-20 | AT195: -0.0002304764998 | AV195: 6.709111086e-21 | AW195: -6.146039994e-05
AQ196: 181 | AR196: 3.159045946 | AS196: -3.58395751e-06 | AT196: -0.0002304413971 | AV196: -9.557220027e-07 | AW196: -6.145103922e-05
AQ197: 182 | AR197: 3.176499239 | AS197: -7.166823312e-06 | AT197: -0.0002303360997 | AV197: -1.911152883e-06 | AW197: -6.142295993e-05
AQ198: 183 | AR198: 3.193952531 | AS198: -1.074750603e-05 | AT198: -0.0002301606397 | AV198: -2.866001608e-06 | AW198: -6.13761706e-05
AQ199: 184 | AR199: 3.211405824 | AS199: -1.432491495e-05 | AT199: -0.0002299150706 | AV199: -3.819977321e-06 | AW199: -6.13106855e-05
AQ200: 185 | AR200: 3.228859116 | AS200: -1.789796037e-05 | AT200: -0.0002295994671 | AV200: -4.772789432e-06 | AW200: -6.122652456e-05
... 174 more rows

Sheet Sheet1 (hidden)
